{"text_format":"1","workbook":"xlsx","n_sheets":1,"sheets":["Ondas"],"not_rendered":{"charts":1,"images":1,"macros":1,"external_links":0,"defined_names":3,"comments":0,"pivot_tables":0},"unopened":[],"bounds":{"document_bytes":16777216,"sheet_cells":100000,"rows_first":2000,"rows_last":500,"rows_between":2000,"halvings":0,"cell_chars":16384,"cell_head_chars":4096},"cells_cut":0,"cells_raw":0,"read":"whole","date_system":"1900"}

{"sheet":"Ondas","index":0,"n_rows":211,"n_cols":18,"rows_kept":211,"cut":false,"hidden":false,"merged":[[7,8,7,9],[8,8,8,9],[4,8,4,9],[5,8,5,9]]}
[]
[]
[null,null,null,null,null,null,null,null,null,null,null,"Waves"]
[]
[null,null,null,null,null,null,null,null,"Cont"]
[null,null,null,null,null,null,null,null,0,null,"R =",0]
[]
[null,null,null,null,null,null,null,null,"Delay (sec.)"]
[null,null,null,null,null,null,null,null,1,null,"x'","x","+y","-y","Random","x/2","+y/2","-y/2"]
[]
[null,null,null,null,null,null,null,null,null,null,-100,{"$f":"IF(ABS($K11)>$L$6,SIGN($K11)*$L$6,$K11)","v":0},{"$f":"SQRT(ROUND($L$6^2-$L11^2,2))","v":0},{"$f":"-M11","v":0},{"$f":"RANDBETWEEN($N11*100,$M11*100)/100","v":0},{"$f":"IF(ABS($K11)>$L$6/2,SIGN($K11)*$L$6/2,$K11)","v":0},{"$f":"SQRT(ROUND(($L$6/2)^2-$P11^2,2))","v":0},{"$f":"-Q11","v":0}]
[null,null,null,null,null,null,null,null,null,null,-99,0,{"$f":"SQRT(ROUND($L$6^2-$L12^2,2))","v":0},{"$f":"-M12","v":0},{"$f":"RANDBETWEEN($N12*100,$M12*100)/100","v":0},{"$f":"IF(ABS($K12)>$L$6/2,SIGN($K12)*$L$6/2,$K12)","v":0},{"$f":"SQRT(ROUND(($L$6/2)^2-$P12^2,2))","v":0},{"$f":"-Q12","v":0}]
[null,null,null,null,null,null,null,null,null,null,-98,0,0,0,0,0,0,0]
[null,null,null,null,null,null,null,null,null,null,-97,0,0,0,0,0,0,0]
[null,null,null,null,null,null,null,null,null,null,-96,0,0,0,0,0,0,0]
[null,null,null,null,null,null,null,null,null,null,-95,0,0,0,0,0,0,0]
[null,null,null,null,null,null,null,null,null,null,-94,0,0,0,0,0,0,0]
[null,null,null,null,null,null,null,null,null,null,-93,0,0,0,0,0,0,0]
[null,null,null,null,null,null,null,null,null,null,-92,0,0,0,0,0,0,0]
[null,null,null,null,null,null,null,null,null,null,-91,0,0,0,0,0,0,0]
[null,null,null,null,null,null,null,null,null,null,-90,0,0,0,0,0,0,0]
[null,null,null,null,null,null,null,null,null,null,-89,0,0,0,0,0,0,0]
[null,null,null,null,null,null,null,null,null,null,-88,0,0,0,0,0,0,0]
[null,null,null,null,null,null,null,null,null,null,-87,0,0,0,0,0,0,0]
[null,null,null,null,null,null,null,null,null,null,-86,0,0,0,0,0,0,0]
[null,null,null,null,null,null,null,null,null,null,-85,0,0,0,0,0,0,0]
[null,null,null,null,null,null,null,null,null,null,-84,0,0,0,0,0,0,0]
[null,null,null,null,null,null,null,null,null,null,-83,0,0,0,0,0,0,0]
[null,null,null,null,null,null,null,null,null,null,-82,0,0,0,0,0,0,0]
[null,null,null,null,null,null,null,null,null,null,-81,0,0,0,0,0,0,0]
[null,null,null,null,null,null,null,null,null,null,-80,0,0,0,0,0,0,0]
[null,null,null,null,null,null,null,null,null,null,-79,0,0,0,0,0,0,0]
[null,null,null,null,null,null,null,null,null,null,-78,0,0,0,0,0,0,0]
[null,null,null,null,null,null,null,null,null,null,-77,0,0,0,0,0,0,0]
[null,null,null,null,null,null,null,null,null,null,-76,0,0,0,0,0,0,0]
[null,null,null,null,null,null,null,null,null,null,-75,0,0,0,0,0,0,0]
[null,null,null,null,null,null,null,null,null,null,-74,0,0,0,0,0,0,0]
[null,null,null,null,null,null,null,null,null,null,-73,0,0,0,0,0,0,0]
[null,null,null,null,null,null,null,null,null,null,-72,0,0,0,0,0,0,0]
[null,null,null,null,null,null,null,null,null,null,-71,0,0,0,0,0,0,0]
[null,null,null,null,null,null,null,null,null,null,-70,0,0,0,0,0,0,0]
[null,null,null,null,null,null,null,null,null,null,-69,0,0,0,0,0,0,0]
[null,null,null,null,null,null,null,null,null,null,-68,0,0,0,0,0,0,0]
[null,null,null,null,null,null,null,null,null,null,-67,0,0,0,0,0,0,0]
[null,null,null,null,null,null,null,null,null,null,-66,0,0,0,0,0,0,0]
[null,null,null,null,null,null,null,null,null,null,-65,0,0,0,0,0,0,0]
[null,null,null,null,null,null,null,null,null,null,-64,0,0,0,0,0,0,0]
[null,null,null,null,null,null,null,null,null,null,-63,0,0,0,0,0,0,0]
[null,null,null,null,null,null,null,null,null,null,-62,0,0,0,0,0,0,0]
[null,null,null,null,null,null,null,null,null,null,-61,0,0,0,0,0,0,0]
[null,null,null,null,null,null,null,null,null,null,-60,0,0,0,0,0,0,0]
[null,null,null,null,null,null,null,null,null,null,-59,0,0,0,0,0,0,0]
[null,null,null,null,null,null,null,null,null,null,-58,0,0,0,0,0,0,0]
[null,null,null,null,null,null,null,null,null,null,-57,0,0,0,0,0,0,0]
[null,null,null,null,null,null,null,null,null,null,-56,0,0,0,0,0,0,0]
[null,null,null,null,null,null,null,null,null,null,-55,0,0,0,0,0,0,0]
[null,null,null,null,null,null,null,null,null,null,-54,0,0,0,0,0,0,0]
[null,null,null,null,null,null,null,null,null,null,-53,0,0,0,0,0,0,0]
[null,null,null,null,null,null,null,null,null,null,-52,0,0,0,0,0,0,0]
[null,null,null,null,null,null,null,null,null,null,-51,0,0,0,0,0,0,0]
[null,null,null,null,null,null,null,null,null,null,-50,0,0,0,0,0,0,0]
[null,null,null,null,null,null,null,null,null,null,-49,0,0,0,0,0,0,0]
[null,null,null,null,null,null,null,null,null,null,-48,0,0,0,0,0,0,0]
[null,null,null,null,null,null,null,null,null,null,-47,0,0,0,0,0,0,0]
[null,null,null,null,null,null,null,null,null,null,-46,0,0,0,0,0,0,0]
[null,null,null,null,null,null,null,null,null,null,-45,0,0,0,0,0,0,0]
[null,null,null,null,null,null,null,null,null,null,-44,0,0,0,0,0,0,0]
[null,null,null,null,null,null,null,null,null,null,-43,0,0,0,0,0,0,0]
[null,null,null,null,null,null,null,null,null,null,-42,0,0,0,0,0,0,0]
[null,null,null,null,null,null,null,null,null,null,-41,0,0,0,0,0,0,0]
[null,null,null,null,null,null,null,null,null,null,-40,0,0,0,0,0,0,0]
[null,null,null,null,null,null,null,null,null,null,-39,0,0,0,0,0,0,0]
[null,null,null,null,null,null,null,null,null,null,-38,0,0,0,0,0,0,0]
[null,null,null,null,null,null,null,null,null,null,-37,0,0,0,0,0,0,0]
[null,null,null,null,null,null,null,null,null,null,-36,{"$f":"IF(ABS($K75)>$L$6,SIGN($K75)*$L$6,$K75)","v":0},0,0,0,0,0,0]
[null,null,null,null,null,null,null,null,null,null,-35,0,{"$f":"SQRT(ROUND($L$6^2-$L76^2,2))","v":0},{"$f":"-M76","v":0},{"$f":"RANDBETWEEN($N76*100,$M76*100)/100","v":0},{"$f":"IF(ABS($K76)>$L$6/2,SIGN($K76)*$L$6/2,$K76)","v":0},{"$f":"SQRT(ROUND(($L$6/2)^2-$P76^2,2))","v":0},{"$f":"-Q76","v":0}]
[null,null,null,null,null,null,null,null,null,null,-34,0,0,0,0,0,0,0]
[null,null,null,null,null,null,null,null,null,null,-33,0,0,0,0,0,0,0]
[null,null,null,null,null,null,null,null,null,null,-32,0,0,0,0,0,0,0]
[null,null,null,null,null,null,null,null,null,null,-31,0,0,0,0,0,0,0]
[null,null,null,null,null,null,null,null,null,null,-30,0,0,0,0,0,0,0]
[null,null,null,null,null,null,null,null,null,null,-29,0,0,0,0,0,0,0]
[null,null,null,null,null,null,null,null,null,null,-28,0,0,0,0,0,0,0]
[null,null,null,null,null,null,null,null,null,null,-27,0,0,0,0,0,0,0]
[null,null,null,null,null,null,null,null,null,null,-26,0,0,0,0,0,0,0]
[null,null,null,null,null,null,null,null,null,null,-25,0,0,0,0,0,0,0]
[null,null,null,null,null,null,null,null,null,null,-24,0,0,0,0,0,0,0]
[null,null,null,null,null,null,null,null,null,null,-23,0,0,0,0,0,0,0]
[null,null,null,null,null,null,null,null,null,null,-22,0,0,0,0,0,0,0]
[null,null,null,null,null,null,null,null,null,null,-21,0,0,0,0,0,0,0]
[null,null,null,null,null,null,null,null,null,null,-20,0,0,0,0,0,0,0]
[null,null,null,null,null,null,null,null,null,null,-19,0,0,0,0,0,0,0]
[null,null,null,null,null,null,null,null,null,null,-18,0,0,0,0,0,0,0]
[null,null,null,null,null,null,null,null,null,null,-17,0,0,0,0,0,0,0]
[null,null,null,null,null,null,null,null,null,null,-16,0,0,0,0,0,0,0]
[null,null,null,null,null,null,null,null,null,null,-15,0,0,0,0,0,0,0]
[null,null,null,null,null,null,null,null,null,null,-14,0,0,0,0,0,0,0]
[null,null,null,null,null,null,null,null,null,null,-13,0,0,0,0,0,0,0]
[null,null,null,null,null,null,null,null,null,null,-12,0,0,0,0,0,0,0]
[null,null,null,null,null,null,null,null,null,null,-11,0,0,0,0,0,0,0]
[null,null,null,null,null,null,null,null,null,null,-10,0,0,0,0,0,0,0]
[null,null,null,null,null,null,null,null,null,null,-9,0,0,0,0,0,0,0]
[null,null,null,null,null,null,null,null,null,null,-8,0,0,0,0,0,0,0]
[null,null,null,null,null,null,null,null,null,null,-7,0,0,0,0,0,0,0]
[null,null,null,null,null,null,null,null,null,null,-6,0,0,0,0,0,0,0]
[null,null,null,null,null,null,null,null,null,null,-5,0,0,0,0,0,0,0]
[null,null,null,null,null,null,null,null,null,null,-4,0,0,0,0,0,0,0]
[null,null,null,null,null,null,null,null,null,null,-3,0,0,0,0,0,0,0]
[null,null,null,null,null,null,null,null,null,null,-2,0,0,0,0,0,0,0]
[null,null,null,null,null,null,null,null,null,null,-1,0,0,0,0,0,0,0]
[null,null,null,null,null,null,null,null,null,null,0,0,0,0,0,0,0,0]
[null,null,null,null,null,null,null,null,null,null,1,0,0,0,0,0,0,0]
[null,null,null,null,null,null,null,null,null,null,2,0,0,0,0,0,0,0]
[null,null,null,null,null,null,null,null,null,null,3,0,0,0,0,0,0,0]
[null,null,null,null,null,null,null,null,null,null,4,0,0,0,0,0,0,0]
[null,null,null,null,null,null,null,null,null,null,5,0,0,0,0,0,0,0]
[null,null,null,null,null,null,null,null,null,null,6,0,0,0,0,0,0,0]
[null,null,null,null,null,null,null,null,null,null,7,0,0,0,0,0,0,0]
[null,null,null,null,null,null,null,null,null,null,8,0,0,0,0,0,0,0]
[null,null,null,null,null,null,null,null,null,null,9,0,0,0,0,0,0,0]
[null,null,null,null,null,null,null,null,null,null,10,0,0,0,0,0,0,0]
[null,null,null,null,null,null,null,null,null,null,11,0,0,0,0,0,0,0]
[null,null,null,null,null,null,null,null,null,null,12,0,0,0,0,0,0,0]
[null,null,null,null,null,null,null,null,null,null,13,0,0,0,0,0,0,0]
[null,null,null,null,null,null,null,null,null,null,14,0,0,0,0,0,0,0]
[null,null,null,null,null,null,null,null,null,null,15,0,0,0,0,0,0,0]
[null,null,null,null,null,null,null,null,null,null,16,0,0,0,0,0,0,0]
[null,null,null,null,null,null,null,null,null,null,17,0,0,0,0,0,0,0]
[null,null,null,null,null,null,null,null,null,null,18,0,0,0,0,0,0,0]
[null,null,null,null,null,null,null,null,null,null,19,0,0,0,0,0,0,0]
[null,null,null,null,null,null,null,null,null,null,20,0,0,0,0,0,0,0]
[null,null,null,null,null,null,null,null,null,null,21,0,0,0,0,0,0,0]
[null,null,null,null,null,null,null,null,null,null,22,0,0,0,0,0,0,0]
[null,null,null,null,null,null,null,null,null,null,23,0,0,0,0,0,0,0]
[null,null,null,null,null,null,null,null,null,null,24,0,0,0,0,0,0,0]
[null,null,null,null,null,null,null,null,null,null,25,0,0,0,0,0,0,0]
[null,null,null,null,null,null,null,null,null,null,26,0,0,0,0,0,0,0]
[null,null,null,null,null,null,null,null,null,null,27,0,0,0,0,0,0,0]
[null,null,null,null,null,null,null,null,null,null,28,{"$f":"IF(ABS($K139)>$L$6,SIGN($K139)*$L$6,$K139)","v":0},0,0,0,0,0,0]
[null,null,null,null,null,null,null,null,null,null,29,0,{"$f":"SQRT(ROUND($L$6^2-$L140^2,2))","v":0},{"$f":"-M140","v":0},{"$f":"RANDBETWEEN($N140*100,$M140*100)/100","v":0},{"$f":"IF(ABS($K140)>$L$6/2,SIGN($K140)*$L$6/2,$K140)","v":0},{"$f":"SQRT(ROUND(($L$6/2)^2-$P140^2,2))","v":0},{"$f":"-Q140","v":0}]
[null,null,null,null,null,null,null,null,null,null,30,0,0,0,0,0,0,0]
[null,null,null,null,null,null,null,null,null,null,31,0,0,0,0,0,0,0]
[null,null,null,null,null,null,null,null,null,null,32,0,0,0,0,0,0,0]
[null,null,null,null,null,null,null,null,null,null,33,0,0,0,0,0,0,0]
[null,null,null,null,null,null,null,null,null,null,34,0,0,0,0,0,0,0]
[null,null,null,null,null,null,null,null,null,null,35,0,0,0,0,0,0,0]
[null,null,null,null,null,null,null,null,null,null,36,0,0,0,0,0,0,0]
[null,null,null,null,null,null,null,null,null,null,37,0,0,0,0,0,0,0]
[null,null,null,null,null,null,null,null,null,null,38,0,0,0,0,0,0,0]
[null,null,null,null,null,null,null,null,null,null,39,0,0,0,0,0,0,0]
[null,null,null,null,null,null,null,null,null,null,40,0,0,0,0,0,0,0]
[null,null,null,null,null,null,null,null,null,null,41,0,0,0,0,0,0,0]
[null,null,null,null,null,null,null,null,null,null,42,0,0,0,0,0,0,0]
[null,null,null,null,null,null,null,null,null,null,43,0,0,0,0,0,0,0]
[null,null,null,null,null,null,null,null,null,null,44,0,0,0,0,0,0,0]
[null,null,null,null,null,null,null,null,null,null,45,0,0,0,0,0,0,0]
[null,null,null,null,null,null,null,null,null,null,46,0,0,0,0,0,0,0]
[null,null,null,null,null,null,null,null,null,null,47,0,0,0,0,0,0,0]
[null,null,null,null,null,null,null,null,null,null,48,0,0,0,0,0,0,0]
[null,null,null,null,null,null,null,null,null,null,49,0,0,0,0,0,0,0]
[null,null,null,null,null,null,null,null,null,null,50,0,0,0,0,0,0,0]
[null,null,null,null,null,null,null,null,null,null,51,0,0,0,0,0,0,0]
[null,null,null,null,null,null,null,null,null,null,52,0,0,0,0,0,0,0]
[null,null,null,null,null,null,null,null,null,null,53,0,0,0,0,0,0,0]
[null,null,null,null,null,null,null,null,null,null,54,0,0,0,0,0,0,0]
[null,null,null,null,null,null,null,null,null,null,55,0,0,0,0,0,0,0]
[null,null,null,null,null,null,null,null,null,null,56,0,0,0,0,0,0,0]
[null,null,null,null,null,null,null,null,null,null,57,0,0,0,0,0,0,0]
[null,null,null,null,null,null,null,null,null,null,58,0,0,0,0,0,0,0]
[null,null,null,null,null,null,null,null,null,null,59,0,0,0,0,0,0,0]
[null,null,null,null,null,null,null,null,null,null,60,0,0,0,0,0,0,0]
[null,null,null,null,null,null,null,null,null,null,61,0,0,0,0,0,0,0]
[null,null,null,null,null,null,null,null,null,null,62,0,0,0,0,0,0,0]
[null,null,null,null,null,null,null,null,null,null,63,0,0,0,0,0,0,0]
[null,null,null,null,null,null,null,null,null,null,64,0,0,0,0,0,0,0]
[null,null,null,null,null,null,null,null,null,null,65,0,0,0,0,0,0,0]
[null,null,null,null,null,null,null,null,null,null,66,0,0,0,0,0,0,0]
[null,null,null,null,null,null,null,null,null,null,67,0,0,0,0,0,0,0]
[null,null,null,null,null,null,null,null,null,null,68,0,0,0,0,0,0,0]
[null,null,null,null,null,null,null,null,null,null,69,0,0,0,0,0,0,0]
[null,null,null,null,null,null,null,null,null,null,70,0,0,0,0,0,0,0]
[null,null,null,null,null,null,null,null,null,null,71,0,0,0,0,0,0,0]
[null,null,null,null,null,null,null,null,null,null,72,0,0,0,0,0,0,0]
[null,null,null,null,null,null,null,null,null,null,73,0,0,0,0,0,0,0]
[null,null,null,null,null,null,null,null,null,null,74,0,0,0,0,0,0,0]
[null,null,null,null,null,null,null,null,null,null,75,0,0,0,0,0,0,0]
[null,null,null,null,null,null,null,null,null,null,76,0,0,0,0,0,0,0]
[null,null,null,null,null,null,null,null,null,null,77,0,0,0,0,0,0,0]
[null,null,null,null,null,null,null,null,null,null,78,0,0,0,0,0,0,0]
[null,null,null,null,null,null,null,null,null,null,79,0,0,0,0,0,0,0]
[null,null,null,null,null,null,null,null,null,null,80,0,0,0,0,0,0,0]
[null,null,null,null,null,null,null,null,null,null,81,0,0,0,0,0,0,0]
[null,null,null,null,null,null,null,null,null,null,82,0,0,0,0,0,0,0]
[null,null,null,null,null,null,null,null,null,null,83,0,0,0,0,0,0,0]
[null,null,null,null,null,null,null,null,null,null,84,0,0,0,0,0,0,0]
[null,null,null,null,null,null,null,null,null,null,85,0,0,0,0,0,0,0]
[null,null,null,null,null,null,null,null,null,null,86,0,0,0,0,0,0,0]
[null,null,null,null,null,null,null,null,null,null,87,0,0,0,0,0,0,0]
[null,null,null,null,null,null,null,null,null,null,88,0,0,0,0,0,0,0]
[null,null,null,null,null,null,null,null,null,null,89,0,0,0,0,0,0,0]
[null,null,null,null,null,null,null,null,null,null,90,0,0,0,0,0,0,0]
[null,null,null,null,null,null,null,null,null,null,91,0,0,0,0,0,0,0]
[null,null,null,null,null,null,null,null,null,null,92,{"$f":"IF(ABS($K203)>$L$6,SIGN($K203)*$L$6,$K203)","v":0},0,0,0,0,0,0]
[null,null,null,null,null,null,null,null,null,null,93,0,{"$f":"SQRT(ROUND($L$6^2-$L204^2,2))","v":0},{"$f":"-M204","v":0},{"$f":"RANDBETWEEN($N204*100,$M204*100)/100","v":0},{"$f":"IF(ABS($K204)>$L$6/2,SIGN($K204)*$L$6/2,$K204)","v":0},{"$f":"SQRT(ROUND(($L$6/2)^2-$P204^2,2))","v":0},{"$f":"-Q204","v":0}]
[null,null,null,null,null,null,null,null,null,null,94,0,0,0,0,0,0,0]
[null,null,null,null,null,null,null,null,null,null,95,0,0,0,0,0,0,0]
[null,null,null,null,null,null,null,null,null,null,96,0,0,0,0,0,0,0]
[null,null,null,null,null,null,null,null,null,null,97,0,0,0,0,0,0,0]
[null,null,null,null,null,null,null,null,null,null,98,0,0,0,0,0,0,0]
[null,null,null,null,null,null,null,null,null,null,99,0,0,0,0,0,0,0]
[null,null,null,null,null,null,null,null,null,null,100,0,0,0,0,0,0,0]